fUSD/lending_fUSD_20250916
["ID","MTS","AMOUNT","RATE_DAILY","PERIOD"]
[385799868,1758048646354,-540.89695512,0.00030136,6]
[385799870,1758048646366,-400.0,0.00030136,6]
[385799873,1758048646377,-400.0,0.00030136,6]
[385799875,1758048646388,-400.0,0.00030136,6]
[385799877,1758048646403,-400.0,0.00030136,6]
[385799879,1758048646415,-400.0,0.00030136,6]
[385799882,1758048646426,-400.0,0.00030136,6]
[385799884,1758048646437,-400.0,0.00030136,6]
[385799886,1758048646448,-415.85,0.00030136,6]
[385799888,1758048646459,-400.0,0.00030136,6]
[385799890,1758048646470,-400.0,0.00030136,6]
[385799892,1758048646481,-406.92,0.00030136,6]
[385799895,1758048646492,-400.0,0.00030136,6]
[385799897,1758048646502,-400.0,0.00030136,6]
[385799899,1758048646513,-400.72913168,0.00030136,6]
[385799901,1758048646523,-400.0,0.00030136,6]
[385799903,1758048646535,-400.0,0.00030136,6]
[385799906,1758048646546,-400.0,0.00030136,6]
[385799908,1758048646557,-400.0,0.00030136,6]
[385799910,1758048646567,-795.49,0.00030136,6]
[385799912,1758048646578,-400.0,0.00030136,6]
[385799914,1758048646588,-400.0,0.00030136,6]
[385799916,1758048646599,-545.83,0.00030136,6]
[385799918,1758048646609,-400.0,0.00030136,6]
[385799920,1758048646620,-400.0,0.00030136,6]
[385799923,1758048646631,-400.0,0.00030136,6]
[385799925,1758048646642,-400.0,0.00030136,6]
[385799927,1758048646652,-400.0,0.00030136,6]
[385799929,1758048646664,-400.0,0.00030136,6]
[385799931,1758048646676,-579.85,0.00030136,6]
[385799933,1758048646686,-400.0,0.00030136,6]
[385799936,1758048646698,-473.45,0.00030136,6]
[385799938,1758048646709,-426.22,0.00030136,6]
[385799940,1758048646719,-405.44795059,0.00030136,6]
[385799942,1758048646730,-400.0,0.00030136,6]
[385799944,1758048646741,-400.0,0.00030136,6]
[385799946,1758048646751,-413.50938956,0.00030136,6]
[385799949,1758048646762,-400.0,0.00030136,6]
[385799951,1758048646774,-400.0,0.00030136,6]
[385799953,1758048646785,-400.0,0.00030136,6]
[385799955,1758048646795,-517.22,0.00030136,6]
[385799957,1758048646805,-400.0,0.00030136,6]
[385799959,1758048646816,-400.0,0.00030136,6]
[385799961,1758048646827,-506.46,0.00030136,6]
[385799964,1758048646837,-400.0,0.00030136,6]
[385799966,1758048646848,-428.97,0.00030136,6]
[385799968,1758048646859,-400.0,0.00030136,6]
[385799970,1758048646870,-509.25,0.00030136,6]
[385799972,1758048646880,-411.61097985,0.00030136,6]
[385799974,1758048646891,-400.0,0.00030136,6]
[385799976,1758048646903,-412.96173383,0.00030136,6]
[385799979,1758048646915,-401.00763035,0.00030136,6]
[385799981,1758048646926,-659.83,0.00030136,6]
[385799983,1758048646936,-494.03,0.00030136,6]
[385799985,1758048646946,-400.0,0.00030136,6]
[385799987,1758048646955,-400.0,0.00030136,6]
[385799989,1758048646964,-404.82,0.00030136,6]
[385799991,1758048646974,-400.0,0.00030136,6]
[385799993,1758048646984,-400.0,0.00030136,6]
[385799995,1758048646993,-1526.12,0.00030136,6]
[385799997,1758048647006,-410.12,0.00030136,6]
[385799999,1758048647015,-400.0,0.00030136,6]
[385800001,1758048647025,-640.01,0.00030136,6]
[385800003,1758048647034,-409.26,0.00030136,6]
[385800005,1758048647045,-400.0,0.00030136,6]
[385800007,1758048647055,-400.0,0.00030136,6]
[385800009,1758048647063,-400.0,0.00030136,6]
[385800011,1758048647073,-400.0,0.00030136,6]
[385800013,1758048647084,-420.39,0.00030136,6]
[385800015,1758048647092,-400.0,0.00030136,6]
[385800017,1758048647102,-420.93,0.00030136,6]
[385800019,1758048647111,-555.11,0.00030136,6]
[385800021,1758048647120,-400.0,0.00030136,6]
[385800023,1758048647129,-533.14,0.00030136,6]
[385800025,1758048647139,-400.0,0.00030136,6]
[385800027,1758048647147,-400.0,0.00030136,6]
[385800029,1758048647156,-400.0,0.00030136,6]
[385800031,1758048647165,-400.0,0.00030136,6]
[385800033,1758048647174,-517.3,0.00030136,6]
[385800035,1758048647183,-400.0,0.00030136,6]
[385800037,1758048647192,-468.01,0.00030136,6]
[385800039,1758048647201,-708.87,0.00030136,6]
[385800041,1758048647211,-577.23,0.00030136,6]
[385800043,1758048647220,-400.0,0.00030136,6]
[385800045,1758048647230,-400.0,0.00030136,6]
[385800047,1758048647239,-400.0,0.00030136,6]
[385800049,1758048647248,-682.81,0.00030136,6]
[385800051,1758048647257,-400.0,0.00030136,6]
[385800098,1758048647806,-400.0,0.00030136,6]
[385800101,1758048647825,-561.5,0.00030136,6]
[385800104,1758048647845,-400.0,0.00030136,6]
[385800108,1758048647867,-507.54,0.00030136,6]
[385800111,1758048647888,-400.0,0.00030136,6]
[385800113,1758048647897,-400.0,0.00030136,6]
[385800115,1758048647906,-400.0,0.00030136,6]
[385800117,1758048647916,-400.0,0.00030136,6]
[385800119,1758048647925,-400.0,0.00030136,6]
[385800121,1758048647934,-400.0,0.00030136,6]
[385800123,1758048647943,-400.0,0.00030136,6]
[385800125,1758048647952,-537.97,0.00030136,6]
[385800127,1758048647961,-424.14,0.00030136,6]
[385800129,1758048647971,-428.02,0.00030136,6]
[385800131,1758048647980,-236.40250942,0.00030136,6]
[385800133,1758048647989,-400.0,0.00030136,6]
[385800135,1758048647998,-400.0,0.00030136,6]
[385800137,1758048648012,-402.02,0.00030136,6]
[385800139,1758048648022,-519.31762888,0.00030136,6]
[385800141,1758048648032,-400.0,0.00030136,6]
[385800143,1758048648041,-400.0,0.00030136,6]
[385800145,1758048648051,-400.0,0.00030136,6]
[385800147,1758048648061,-400.0,0.00030136,6]
[385800149,1758048648070,-704.49,0.00030136,6]
[385800151,1758048648079,-400.0,0.00030136,6]
[385800153,1758048648089,-482.36219738,0.00030136,6]
[385800155,1758048648098,-400.0,0.00030136,6]
[385800157,1758048648107,-555.06,0.00030136,6]
[385800159,1758048648118,-400.0,0.00030136,6]
[385800161,1758048648128,-400.0,0.00030136,6]
[385800163,1758048648138,-400.0,0.00030136,6]
[385800165,1758048648147,-486.55,0.00030136,6]
[385800167,1758048648158,-400.0,0.00030136,6]
[385800169,1758048648168,-400.0,0.00030136,6]
[385800171,1758048648179,-400.0,0.00030136,6]
[385800173,1758048648188,-400.0,0.00030136,6]
[385800175,1758048648198,-400.0,0.00030136,6]
[385800177,1758048648209,-400.0,0.00030136,6]
[385800179,1758048648219,-400.0,0.00030136,6]
[385800181,1758048648229,-457.27,0.00030136,6]
[385800183,1758048648239,-400.0,0.00030136,6]
[385800185,1758048648248,-606.22,0.00030136,6]
[385800187,1758048648258,-400.0,0.00030136,6]
[385800189,1758048648267,-400.0,0.00030136,6]
[385800191,1758048648277,-560.82,0.00030136,6]
[385800193,1758048648286,-400.0,0.00030136,6]
[385800195,1758048648296,-400.0,0.00030136,6]
[385800197,1758048648305,-400.0,0.00030136,6]
[385800199,1758048648315,-400.0,0.00030136,6]
[385800201,1758048648325,-400.0,0.00030136,6]
[385800203,1758048648334,-478.04,0.00030136,6]
[385800206,1758048648344,-400.0,0.00030136,6]
[385800208,1758048648353,-400.0,0.00030136,6]
[385800210,1758048648362,-400.0,0.00030136,6]
[385800211,1758048648372,-549.19,0.00030136,6]
[385800214,1758048648381,-590.07,0.00030136,6]
[385800216,1758048648391,-400.0,0.00030136,6]
[385800217,1758048648401,-3787.73,0.00030136,6]
[385800220,1758048648411,-318.4584784,0.00030136,6]
[385800221,1758048648422,-400.0,0.00030136,6]
[385800223,1758048648431,-400.0,0.00030136,6]
[385800225,1758048648441,-400.0,0.00030136,6]
[385800227,1758048648450,-400.0,0.00030136,6]
[385800229,1758048648460,-522.8,0.00030136,6]
[385800232,1758048648469,-400.0,0.00030136,6]
[385800234,1758048648479,-300.0,0.00030136,6]
[385800235,1758048648488,-400.0,0.00030136,6]
[385800237,1758048648497,-2202.71,0.00030136,6]
[385800240,1758048648507,-400.0,0.00030136,6]
[385800241,1758048648516,-400.0,0.00030136,6]
[385800243,1758048648526,-400.0,0.00030136,6]
[385800245,1758048648536,-400.0,0.00030136,6]
[385800248,1758048648546,-400.0,0.00030136,6]
[385800250,1758048648556,-400.0,0.00030136,6]
[385800251,1758048648565,-410.61,0.00030136,6]
[385800254,1758048648579,-400.0,0.00030136,6]
[385800256,1758048648588,-400.0,0.00030136,6]
[385800258,1758048648598,-595.83,0.00030136,6]
[385800260,1758048648608,-728.72,0.00030136,6]
[385800262,1758048648617,-400.0,0.00030136,6]
[385800264,1758048648626,-400.0,0.00030136,6]
[385800266,1758048648635,-406.17231834,0.00030136,6]
[385800268,1758048648644,-400.0,0.00030136,6]
[385800270,1758048648654,-400.0,0.00030136,6]
[385800272,1758048648663,-400.0,0.00030136,6]
[385800274,1758048648673,-400.0,0.00030136,6]
[385800276,1758048648683,-412.84,0.00030136,6]
[385800278,1758048648692,-963.47,0.00030136,6]
[385800280,1758048648702,-248.88016739,0.00030136,6]
[385800282,1758048648712,-400.0,0.00030136,6]
[385800284,1758048648722,-373.3883344,0.00030136,6]
[385800286,1758048648731,-176.93849969,0.00030136,6]
[385800288,1758048648741,-471.08,0.00030136,6]
[385800290,1758048648750,-701.36,0.00030136,6]
[385800292,1758048648760,-400.0,0.00030136,6]
[385800294,1758048648769,-400.0,0.00030136,6]
[385800296,1758048648778,-400.0,0.00030136,6]
[385800298,1758048648788,-400.0,0.00030136,6]
[385800300,1758048648798,-400.0,0.00030136,6]
[385800302,1758048648807,-400.0,0.00030136,6]
[385800304,1758048648817,-446.83,0.00030136,6]
[385800306,1758048648827,-485.58,0.00030136,6]
[385800308,1758048648837,-400.59,0.00030136,6]
[385800310,1758048648847,-400.0,0.00030136,6]
[385800312,1758048648857,-408.92474047,0.00030136,6]
[385800314,1758048648867,-400.0,0.00030136,6]
[385800316,1758048648876,-400.0,0.00030136,6]
[385800318,1758048648888,-400.0,0.00030136,6]
[385800321,1758048648898,-618.29,0.00030136,6]
[385800323,1758048648908,-400.0,0.00030136,6]
[385800325,1758048648917,-403.34323807,0.00030136,6]
[385800327,1758048648926,-400.0,0.00030136,6]
[385800329,1758048648936,-388.27193371,0.00030136,6]
[385800330,1758048648945,-400.0,0.00030136,6]
[385800333,1758048648955,-400.0,0.00030136,6]
[385800335,1758048648965,-400.0,0.00030136,6]
[385800337,1758048648975,-400.0,0.00030136,6]
[385800338,1758048648985,-400.0,0.00030136,6]
[385800341,1758048648995,-400.0,0.00030136,6]
[385800343,1758048649007,-633.25,0.00030136,6]
[385800345,1758048649016,-1785.68,0.00030136,6]
[385800347,1758048649026,-467.37,0.00030136,6]
[385800349,1758048649036,-681.42,0.00030136,6]
[385800351,1758048649047,-442.8210071,0.00030136,6]
[385800353,1758048649056,-400.0,0.00030136,6]
[385800355,1758048649065,-400.0,0.00030136,6]
[385800357,1758048649074,-400.0,0.00030136,6]
[385800359,1758048649086,-400.0,0.00030136,6]
[385800361,1758048649096,-400.0,0.00030136,6]
[385800363,1758048649106,-400.0,0.00030136,6]
[385800365,1758048649115,-400.0,0.00030136,6]
[385800367,1758048649124,-400.0,0.00030136,6]
[385800369,1758048649134,-400.0,0.00030136,6]
[385800371,1758048649143,-450.84,0.00030136,6]
[385800373,1758048649152,-400.0,0.00030136,6]
[385800375,1758048649162,-400.0,0.00030136,6]
[385800377,1758048649171,-491.09,0.00030136,6]
[385800379,1758048649181,-400.0,0.00030136,6]
[385800381,1758048649190,-521.61,0.00030136,6]
[385800383,1758048649200,-418.99,0.00030136,6]
[385800385,1758048649210,-400.0,0.00030136,6]
[385800387,1758048649219,-400.0,0.00030136,6]
[385800389,1758048649228,-400.0,0.00030136,6]
[385800391,1758048649237,-434.96,0.00030136,6]
[385800393,1758048649247,-400.0,0.00030136,6]
[385800395,1758048649256,-1029.73,0.00030136,6]
[385800397,1758048649265,-462.26,0.00030136,6]
[385800399,1758048649275,-604.73,0.00030136,6]
[385800401,1758048649285,-919.06,0.00030136,6]
[385800403,1758048649294,-231.56488994,0.00030136,6]
[385800407,1758048649328,-168.43511006,0.00030136,6]
[385800409,1758048649338,-400.0,0.00030136,6]
[385800411,1758048649348,-487.43,0.00030136,6]
[385800413,1758048649358,-1000.0,0.00030136,6]
[385800415,1758048649367,-400.0,0.00030136,6]
[385800418,1758048649377,-400.0,0.00030136,6]
[385800420,1758048649387,-400.0,0.00030136,6]
[385800422,1758048649396,-582.83,0.00030136,6]
[385800424,1758048649406,-400.0,0.00030136,6]
[385800426,1758048649415,-577.44,0.00030136,6]
[385800428,1758048649425,-400.0,0.00030136,6]
[385800430,1758048649434,-400.0,0.00030136,6]
[385800432,1758048649443,-400.0,0.00030136,6]
[385800434,1758048649453,-343.22360121,0.00030136,6]
[385800436,1758048649462,-454.76,0.00030136,6]
[385800438,1758048649471,-400.0,0.00030136,6]
[385800440,1758048649481,-411.23,0.00030136,6]
[385800442,1758048649490,-1271.59,0.00030136,6]
[385800444,1758048649500,-400.0,0.00030136,6]
[385800446,1758048649509,-428.44,0.00030136,6]
[385800448,1758048649518,-400.0,0.00030136,6]
[385800450,1758048649527,-400.0,0.00030136,6]
[385800452,1758048649537,-47.64925831,0.00030136,6]
[385800454,1758048649549,-352.35074169,0.00030136,6]
[385800456,1758048649559,-400.0,0.00030136,6]
[385800458,1758048649568,-400.0,0.00030136,6]
[385800460,1758048649577,-575.39,0.00030136,6]
[385800462,1758048649587,-400.0,0.00030136,6]
[385800464,1758048649596,-400.0,0.00030136,6]
[385800466,1758048649605,-400.0,0.00030136,6]
[385800468,1758048649615,-400.0,0.00030136,6]
[385800470,1758048649624,-400.0,0.00030136,6]
[385800472,1758048649634,-400.0,0.00030136,6]
[385800474,1758048649644,-400.0,0.00030136,6]
[385800476,1758048649653,-400.0,0.00030136,6]
[385800479,1758048649663,-508.61,0.00030136,6]
[385800481,1758048649672,-408.28425816,0.00030136,6]
[385800483,1758048649682,-400.0,0.00030136,6]
[385800485,1758048649692,-400.0,0.00030136,6]
[385800487,1758048649701,-400.0,0.00030136,6]
[385800489,1758048649711,-460.2,0.00030136,6]
[385800491,1758048649720,-400.0,0.00030136,6]
[385800493,1758048649729,-400.0,0.00030136,6]
[385800495,1758048649739,-400.0,0.00030136,6]
[385800497,1758048649748,-400.0,0.00030136,6]
[385800499,1758048649757,-400.0,0.00030136,6]
[385800501,1758048649766,-563.13,0.00030136,6]
[385800503,1758048649775,-306.22,0.00030136,6]
[385800505,1758048649784,-477.49170496,0.00030136,6]
[385800507,1758048649794,-400.0,0.00030136,6]
[385800509,1758048649803,-173.32329519,0.00030136,6]
[385800511,1758048649821,-226.67670481,0.00030136,6]
[385800513,1758048649830,-163.75910922,0.00030136,6]
[385800518,1758048649868,-389.01089078,0.00030136,6]
[385800520,1758048649878,-400.0,0.00030136,6]
[385800521,1758048649887,-602.49,0.00030136,6]
[385800522,1758048649896,-400.0,0.00030136,6]
[385800523,1758048649905,-872.62,0.00030136,6]
[385800524,1758048649916,-400.0,0.00030136,6]
[385800525,1758048649928,-400.0,0.00030136,6]
[385800526,1758048649937,-1021.14,0.00030136,6]
[385800527,1758048649947,-594.6,0.00030136,6]
[385800528,1758048649957,-400.0,0.00030136,6]
[385800530,1758048649966,-400.0,0.00030136,6]
[385800531,1758048649975,-916.74097348,0.00030136,6]
[385800534,1758048650002,-370.88633009,0.00030136,6]
[385800537,1758048650015,-1064.8319108,0.00030136,6]
[385800539,1758048650031,-131.43078563,0.00030136,6]
[385800541,1758048650041,-884.46,0.00030136,6]
[385800543,1758048650051,-400.0,0.00030136,6]
[385800545,1758048650060,-400.0,0.00030136,6]
[385800547,1758048650069,-513.85,0.00030136,6]
[385800549,1758048650079,-539.73,0.00030136,6]
[385800552,1758048650089,-400.0,0.00030136,6]
[385800554,1758048650099,-400.0,0.00030136,6]
[385800556,1758048650108,-400.0,0.00030136,6]
[385800558,1758048650117,-771.26,0.00030136,6]
[385800560,1758048650126,-490.80161067,0.00030136,6]
[385800562,1758048650135,-400.0,0.00030136,6]
[385800564,1758048650145,-510.05690702,0.00030136,6]
[385800566,1758048650154,-400.0,0.00030136,6]
[385800567,1758048650163,-400.0,0.00030136,6]
[385800569,1758048650172,-244.71424668,0.00030136,6]
[385800573,1758048650196,-956.19575332,0.00030136,6]
[385800575,1758048650205,-400.0,0.00030136,6]
[385800577,1758048650214,-400.0,0.00030136,6]
[385800599,1758048650408,-567.12,0.00030136,6]
[385800601,1758048650418,-291.34014871,0.00030136,6]
[385800603,1758048650427,-438.16,0.00030136,6]
[385800606,1758048650436,-2547.06,0.00030136,6]
[385800607,1758048650446,-390.75938455,0.00030136,6]
[385800610,1758048650458,-184.35061545,0.00030136,6]
[385800612,1758048650467,-400.0,0.00030136,6]
[385800613,1758048650477,-1261.95,0.00030136,6]
[385800614,1758048650486,-292.24511383,0.00030136,6]
[385800615,1758048650495,-299.14696346,0.00030136,6]
[385800616,1758048650504,-637.25,0.00030136,6]
[385800617,1758048650514,-67.44169723,0.00030136,6]
[385802075,1758049050276,329.59,0.00028075,120]
[385802077,1758049072952,245.20950577,0.00013699,2]
[385802078,1758049072975,254.79049423,0.00013699,2]
[385802119,1758049203844,311.86105216,0.00030136,120]
[385802131,1758049255557,441.01138,0.0003013,120]
[385802132,1758049259110,290.88919544,0.00013699,2]
[385802139,1758049530535,162.21,0.00013928,2]
[385802140,1758049531196,162.21,0.0001857,2]
[385802142,1758049560222,151.0,0.0001857,2]
[385802143,1758049560291,206.23559676,0.0001857,2]
[385802150,1758049684487,2099.96122093,0.0002513,120]
[385802151,1758049746945,2000.0,0.00025534,120]
[385802152,1758049747053,2000.0,0.00023278,120]
[385802153,1758049804282,2000.0,0.00025534,120]
[385802154,1758049809942,2000.0,0.00023278,120]
[385802162,1758049831908,-162.21,0.00023213,2]
[385802163,1758049831918,-250.0,0.00023342,2]
[385802164,1758049831927,-250.0,0.00023453,2]
[385802165,1758049831936,-300.0,0.00023472,2]
[385802166,1758049831946,-1200.0,0.00023472,2]
[385802167,1758049831955,-340.14553717,0.00023473,2]
[385802168,1758049831964,-500.0,0.00023473,2]
[385802169,1758049831973,-500.0,0.00023473,2]
[385802170,1758049831982,-500.0,0.00023473,2]
[385802171,1758049831992,-520.88934651,0.00023473,2]
[385802172,1758049832001,-2000.0,0.00023474,3]
[385802173,1758049832011,-2000.0,0.00023632,3]
[385802174,1758049832021,-400.0,0.00023734,2]
[385802175,1758049832032,-300.0,0.0002513,2]
[385802176,1758049832041,-2000.0,0.00025534,3]
[385802177,1758049832051,-250.0,0.00025534,2]
[385802178,1758049832061,-1680.0,0.00025585,2]
[385802179,1758049832072,-151.0,0.00025856,2]
[385802180,1758049832083,-160.48138757,0.00027099,4]
[385802181,1758049832094,-154.17732811,0.00027099,4]
[385802182,1758049832104,-198.5530008,0.00027099,4]
[385802183,1758049832115,-150.0,0.00027099,4]
[385802184,1758049832124,-171.76054316,0.00027099,4]
[385802185,1758049832134,-150.0,0.00027099,4]
[385802186,1758049832143,-150.0,0.00027099,4]
[385802187,1758049832152,-1197.08,0.000274,2]
[385802188,1758049832163,-504.0,0.0002767,2]
[385802189,1758049832172,-300.0,0.00027681,2]
[385802190,1758049832181,-150.0,0.00027847,7]
[385802191,1758049832191,-162.21,0.00027855,2]
[385802192,1758049832200,-1140.0,0.00027889,2]
[385802193,1758049832209,-4702.25,0.00027973,2]
[385802194,1758049832218,-500.0,0.00027975,2]
[385802195,1758049832227,-200.0,0.00028022,2]
[385802196,1758049832237,-200.0,0.00028022,2]
[385802197,1758049832246,-500.0,0.00028022,2]
[385802198,1758049832256,-500.0,0.00028022,2]
[385802199,1758049832265,-500.0,0.00028022,2]
[385802200,1758049832275,-500.0,0.00028022,2]
[385802201,1758049832285,-500.0,0.00028022,2]
[385802202,1758049832295,-500.0,0.00028022,2]
[385802203,1758049832305,-500.0,0.00028022,2]
[385802220,1758049832480,-151.0,0.00028022,2]
[385802222,1758049832490,-500.0,0.00028022,2]
[385802224,1758049832503,-500.0,0.00028022,2]
[385802226,1758049832512,-500.0,0.00028022,2]
[385802228,1758049832521,-500.0,0.00028022,2]
[385802230,1758049832531,-500.0,0.00028022,2]
[385802232,1758049832540,-500.0,0.00028022,2]
[385802234,1758049832549,-200.0,0.00028022,2]
[385802236,1758049832559,-151.0,0.00028022,2]
[385802238,1758049832568,-155.24394611,0.00028022,2]
[385802240,1758049832577,-151.0,0.00028022,2]
[385802242,1758049832587,-151.0,0.00028022,2]
[385802244,1758049832596,-151.0,0.00028022,2]
[385802246,1758049832605,-151.0,0.00028022,2]
[385802248,1758049832615,-151.0,0.00028022,2]
[385802250,1758049832624,-151.0,0.00028022,2]
[385802252,1758049832634,-151.0,0.00028022,2]
[385802254,1758049832643,-151.0,0.00028022,2]
[385802256,1758049832652,-322.6107,0.00028039,2]
[385802258,1758049832661,-261.39681185,0.00028039,2]
[385802260,1758049832670,-151.0,0.00028039,2]
[385802262,1758049832679,-8882.6885148,0.00028039,2]
[385802264,1758049832688,-3000.0,0.00028039,2]
[385802266,1758049832698,-151.0,0.00028039,2]
[385802267,1758049832707,-257.91778498,0.00028039,2]
[385802269,1758049832716,-500.0,0.00028039,2]
[385802271,1758049832725,-500.0,0.00028039,2]
[385802273,1758049832735,-151.0,0.00028039,2]
[385802275,1758049832744,-500.0,0.00028039,2]
[385802277,1758049832754,-500.0,0.00028039,2]
[385802279,1758049832763,-500.0,0.00028039,2]
[385802281,1758049832772,-1000.0,0.00028039,2]
[385802283,1758049832783,-294.24384477,0.00028039,2]
[385802285,1758049832792,-500.0,0.00028039,2]
[385802288,1758049832803,-1000.0,0.00028039,2]
[385802289,1758049832812,-500.0,0.00028039,2]
[385802291,1758049832821,-250.0,0.00028039,2]
[385802293,1758049832830,-1000.0,0.00028039,2]
[385802295,1758049832839,-500.0,0.00028039,2]
[385802297,1758049832848,-1000.0,0.00028039,2]
[385802299,1758049832858,-500.0,0.00028039,2]
[385802301,1758049832867,-1000.0,0.00028039,2]
[385802303,1758049832877,-500.0,0.00028039,2]
[385802305,1758049832887,-1000.0,0.00028039,2]
[385802307,1758049832896,-500.0,0.00028039,2]
[385802309,1758049832905,-500.0,0.00028039,2]
[385802311,1758049832915,-1000.0,0.00028039,2]
[385802313,1758049832924,-1000.0,0.00028039,2]
[385802315,1758049832933,-1000.0,0.00028039,2]
[385802317,1758049832942,-151.0,0.00028039,2]
[385802319,1758049832952,-151.0,0.00028039,2]
[385802321,1758049832962,-151.0,0.00028039,2]
[385802323,1758049832971,-151.0,0.00028039,2]
[385802325,1758049832980,-151.0,0.00028039,2]
[385802327,1758049832989,-151.0,0.00028039,2]
[385802330,1758049832999,-151.0,0.00028039,2]
[385802332,1758049833009,-151.0,0.00028039,2]
[385802334,1758049833019,-151.0,0.00028039,2]
[385802336,1758049833029,-151.0,0.00028039,2]
[385802338,1758049833040,-155.10151875,0.00028039,2]
[385802340,1758049833050,-150.0,0.00028039,2]
[385802342,1758049833060,-150.0,0.00028039,2]
[385802344,1758049833071,-150.0,0.00028039,2]
[385802346,1758049833080,-150.0,0.00028039,2]
[385802348,1758049833089,-150.0,0.00028039,2]
[385802350,1758049833099,-150.0,0.00028039,2]
[385802352,1758049833108,-150.0,0.00028039,2]
[385802354,1758049833118,-150.0,0.00028039,2]
[385802356,1758049833127,-845.275,0.00028087,2]
[385802357,1758049833136,-669.47935067,0.00028094,2]
[385802360,1758049833145,-160.0,0.00028309,2]
[385802362,1758049833155,-160.0,0.00028309,2]
[385802364,1758049833164,-150.0,0.00028313,2]
[385802365,1758049833174,-200.0,0.00028313,2]
[385802367,1758049833183,-150.0,0.00028313,2]
[385802370,1758049833198,-150.0,0.00028313,2]
[385802372,1758049833207,-150.0,0.00028313,2]
[385802374,1758049833218,-150.0,0.00028313,2]
[385802376,1758049833228,-250.0,0.00028325,2]
[385802378,1758049833237,-168.0,0.00028497,2]
[385802380,1758049833248,-200.0,0.0002857,2]
[385802382,1758049833258,-200.0,0.0002857,2]
[385802384,1758049833267,-150.0,0.00028587,2]
[385802386,1758049833278,-200.0,0.00028587,2]
[385802388,1758049833287,-200.0,0.00028587,2]
[385802390,1758049833297,-150.0,0.00028587,2]
[385802392,1758049833307,-171.43,0.00028704,2]
[385802395,1758049833317,-1251.18,0.00028742,2]
[385802396,1758049833327,-175.33,0.00028742,2]
[385802398,1758049833337,-426.17,0.00028742,2]
[385802401,1758049833347,-171.48,0.00028781,2]
[385802403,1758049833357,-150.0,0.00028861,2]
[385802405,1758049833367,-150.0,0.00028861,2]
[385802407,1758049833377,-471.86,0.00028887,2]
[385802409,1758049833387,-943.72,0.00028887,2]
[385802411,1758049833396,-1579.85,0.00028967,2]
[385802413,1758049833405,-151.0,0.00029006,3]
[385802415,1758049833415,-150.0,0.00029135,2]
[385802417,1758049833424,-250.0,0.00029135,2]
[385802419,1758049833434,-1654.36989494,0.00029245,7]
[385802421,1758049833444,-276.0,0.000293,2]
[385802423,1758049833453,-267.46074303,0.00029408,2]
[385802425,1758049833463,-250.0,0.00029409,2]
[385802427,1758049833473,-151.0,0.00029426,3]
[385802429,1758049833483,-798.64574041,0.00029652,2]
[385802431,1758049833496,-168.0,0.00029675,2]
[385802433,1758049833506,-300.0,0.000297,10]